fUST/lending_fUST_20240924
["ID","MTS","AMOUNT","RATE_DAILY","PERIOD"]
[339060689,1727185853625,-500.0,0.00027671,7]
[339060690,1727185853636,-500.0,0.00027671,7]
[339060691,1727185853646,-500.0,0.00027671,7]
[339060692,1727185853657,-810.17,0.00027671,2]
[339060693,1727185853667,-341.29835862,0.00027671,7]
[339060694,1727185853676,-922.97,0.00027671,7]
[339060695,1727185853685,-699.038868,0.00027671,7]
[339060696,1727185853694,-500.0,0.00027671,7]
[339060697,1727185853704,-500.0,0.00027671,7]
[339060698,1727185853715,-502.02431102,0.00027671,7]
[339060699,1727185853725,-699.038868,0.00027671,7]
[339060700,1727185853734,-500.0,0.00027671,7]
[339060701,1727185853744,-164.41,0.00027671,7]
[339060702,1727185853755,-500.0,0.00027671,7]
[339060703,1727185853764,-1474.2,0.00027671,7]
[339060704,1727185853775,-500.0,0.00027671,7]
[339060705,1727185853784,-675.51,0.00027671,7]
[339060706,1727185853794,-930.14,0.00027671,7]
[339060707,1727185853803,-500.0,0.00027671,7]
[339060708,1727185853812,-623.3,0.00027671,7]
[339060709,1727185853821,-500.0,0.00027671,7]
[339060710,1727185853830,-500.0,0.00027671,7]
[339060711,1727185853839,-3188.19,0.00027671,7]
[339060712,1727185853848,-500.0,0.00027671,7]
[339060713,1727185853858,-1600.85,0.00027671,7]
[339060714,1727185853867,-1028.41,0.00027671,7]
[339060715,1727185853877,-151.0,0.00027671,7]
[339060716,1727185853887,-500.0,0.00027671,7]
[339060717,1727185853896,-1081.35,0.00027671,7]
[339060718,1727185853906,-500.0,0.00027671,7]
[339060719,1727185853915,-500.0,0.00027671,7]
[339060720,1727185853924,-151.0,0.00027671,7]
[339060721,1727185853934,-500.0,0.00027671,7]
[339060722,1727185853946,-507.09375705,0.00027671,7]
[339060723,1727185853957,-500.0,0.00027671,7]
[339060724,1727185853966,-500.0,0.00027671,7]
[339060725,1727185853976,-500.0,0.00027671,7]
[339060726,1727185853985,-755.32,0.00027671,7]
[339060727,1727185853994,-500.0,0.00027671,7]
[339060728,1727185854004,-500.0,0.00027671,7]
[339060729,1727185854014,-518.85,0.00027671,7]
[339060730,1727185854025,-500.0,0.00027671,7]
[339060731,1727185854034,-255.80139969,0.00027671,7]
[339060732,1727185854043,-500.42340624,0.00027671,7]
[339060733,1727185854053,-500.0,0.00027671,7]
[339060734,1727185854062,-537.38,0.00027671,7]
[339060735,1727185854071,-500.0,0.00027671,7]
[339060736,1727185854080,-500.0,0.00027671,7]
[339060737,1727185854089,-500.0,0.00027671,7]
[339060738,1727185854098,-500.0,0.00027671,7]
[339060739,1727185854107,-1428.87,0.00027671,7]
[339060740,1727185854117,-500.0,0.00027671,7]
[339060741,1727185854126,-500.0,0.00027671,7]
[339060742,1727185854137,-500.0,0.00027671,7]
[339060743,1727185854145,-500.0,0.00027671,7]
[339060744,1727185854155,-894.35,0.00027671,7]
[339060745,1727185854164,-719.56,0.00027671,7]
[339060746,1727185854174,-252.68,0.00027671,7]
[339060747,1727185854183,-151.0,0.00027671,7]
[339060748,1727185854193,-501.92027967,0.00027671,7]
[339060749,1727185854202,-500.0,0.00027671,7]
[339060750,1727185854211,-506.94126915,0.00027671,7]
[339060751,1727185854220,-500.0,0.00027671,7]
[339060752,1727185854230,-500.0,0.00027671,7]
[339060753,1727185854240,-500.0,0.00027671,7]
[339060754,1727185854250,-500.0,0.00027671,7]
[339060755,1727185854259,-500.0,0.00027671,7]
[339060756,1727185854268,-505.34889648,0.00027671,7]
[339060757,1727185854280,-500.0,0.00027671,7]
[339060758,1727185854289,-835.58,0.00027671,7]
[339060759,1727185854299,-689.75,0.00027671,7]
[339060760,1727185854308,-500.0,0.00027671,7]
[339060761,1727185854317,-500.0,0.00027671,7]
[339060762,1727185854326,-151.0,0.00027671,7]
[339060763,1727185854335,-151.0,0.00027671,7]
[339060764,1727185854427,-500.0,0.00027671,7]
[339060765,1727185854437,-500.0,0.00027671,7]
[339060766,1727185854446,-500.0,0.00027671,7]
[339060767,1727185854455,-671.66,0.00027671,7]
[339060768,1727185854464,-500.0,0.00027671,7]
[339060769,1727185854473,-500.0,0.00027671,7]
[339060770,1727185854481,-500.0,0.00027671,7]
[339060771,1727185854490,-500.0,0.00027671,7]
[339060772,1727185854499,-1570.3,0.00027671,7]
[339060773,1727185854508,-451.2581023,0.00027671,7]
[339060774,1727185854517,-500.0,0.00027671,7]
[339060775,1727185854527,-929.8,0.00027671,7]
[339060776,1727185854537,-538.62656069,0.00027671,7]
[339060777,1727185854546,-825.571215,0.00027671,7]
[339060778,1727185854555,-204.9841992,0.00027671,7]
[339060779,1727185854564,-500.0,0.00027671,7]
[339060780,1727185854574,-825.571215,0.00027671,7]
[339060781,1727185854584,-500.0,0.00027671,7]
[339060782,1727185854593,-586.32,0.00027671,7]
[339060783,1727185854603,-500.0,0.00027671,7]
[339060784,1727185854612,-151.0,0.00027671,2]
[339060785,1727185854621,-500.0,0.00027671,7]
[339060786,1727185854630,-978.1,0.00027671,7]
[339060787,1727185854639,-232.35137356,0.00027671,7]
[339060788,1727185854649,-245.39849878,0.00027671,7]
[339060789,1727185854658,-240.90618,0.00027671,7]
[339060790,1727185854667,-500.0,0.00027671,7]
[339060791,1727185854676,-240.90618,0.00027671,7]
[339060792,1727185854685,-528.17,0.00027671,7]
[339060793,1727185854694,-254.70597826,0.00027671,7]
[339060794,1727185854704,-500.0,0.00027671,7]
[339060795,1727185854713,-593.65926069,0.00027671,7]
[339060796,1727185854722,-500.0,0.00027671,7]
[339060797,1727185854731,-500.0,0.00027671,7]
[339060798,1727185854741,-500.0,0.00027671,7]
[339060799,1727185854750,-506.28628525,0.00027671,7]
[339060800,1727185854759,-538.84733927,0.00027671,7]
[339060801,1727185854768,-500.0,0.00027671,7]
[339060802,1727185854780,-512.24235094,0.00027671,7]
[339060803,1727185854789,-500.0,0.00027671,7]
[339060804,1727185854798,-500.0,0.00027671,7]
[339060805,1727185854808,-981.83,0.00027671,7]
[339060806,1727185854817,-500.0,0.00027671,7]
[339060807,1727185854826,-500.0,0.00027671,7]
[339060808,1727185854835,-501.88673691,0.00027671,7]
[339060809,1727185854844,-553.0335868,0.00027671,7]
[339060810,1727185854853,-703.98,0.00027671,7]
[339060811,1727185854862,-500.0,0.00027671,7]
[339060812,1727185854871,-500.0,0.00027671,7]
[339060813,1727185854880,-500.0,0.00027671,7]
[339060814,1727185854890,-564.57,0.00027671,7]
[339060815,1727185854899,-1121.809827,0.00027671,7]
[339060816,1727185854908,-688.17,0.00027671,7]
[339060817,1727185854917,-647.27,0.00027671,7]
[339060818,1727185854927,-500.0,0.00027671,7]
[339060819,1727185854937,-500.0,0.00027671,7]
[339060820,1727185854949,-500.0,0.00027671,7]
[339060821,1727185854958,-1121.809827,0.00027671,7]
[339060822,1727185854969,-516.1270884,0.00027671,7]
[339060823,1727185854978,-1043.980229,0.00027671,7]
[339060824,1727185854986,-500.0,0.00027671,7]
[339060825,1727185854996,-500.0,0.00027671,7]
[339060826,1727185855005,-500.0,0.00027671,7]
[339060827,1727185855014,-1043.980229,0.00027671,7]
[339060828,1727185855024,-500.0,0.00027671,7]
[339060829,1727185855034,-500.0,0.00027671,7]
[339060830,1727185855051,-500.0,0.00027671,7]
[339060831,1727185855071,-500.0,0.00027671,7]
[339060832,1727185855089,-500.0,0.00027671,7]
[339060833,1727185855108,-500.0,0.00027671,7]
[339060834,1727185855131,-500.0,0.00027671,7]
[339060835,1727185855148,-363.04105909,0.00027671,7]
[339060836,1727185855168,-500.0,0.00027671,7]
[339060837,1727185855184,-902.91,0.00027671,7]
[339060838,1727185855201,-500.0,0.00027671,7]
[339060839,1727185855220,-500.0,0.00027671,7]
[339060840,1727185855240,-475.46172879,0.00027671,7]
[339060841,1727185855255,-151.0,0.00027671,7]
[339060842,1727185855273,-151.0,0.00027671,7]
[339060843,1727185855289,-500.0,0.00027671,7]
[339060844,1727185855308,-500.0,0.00027671,7]
[339060845,1727185855324,-500.0,0.00027671,7]
[339060846,1727185855340,-500.0,0.00027671,7]
[339060847,1727185855361,-561.92,0.00027671,7]
[339060848,1727185855375,-500.0,0.00027671,7]
[339060849,1727185855392,-500.0,0.00027671,7]
[339060850,1727185855407,-541.31,0.00027671,7]
[339060851,1727185855422,-515.45512892,0.00027671,7]
[339060852,1727185855437,-601.38013136,0.00027671,7]
[339060853,1727185855451,-500.0,0.00027671,7]
[339060854,1727185855467,-500.0,0.00027671,7]
[339060855,1727185855480,-607.55961471,0.00027671,7]
[339060856,1727185855495,-500.0,0.00027671,7]
[339060857,1727185855509,-500.0,0.00027671,7]
[339060858,1727185855524,-1788.93,0.00027671,7]
[339060859,1727185855547,-500.0,0.00027671,7]
[339060860,1727185855561,-500.0,0.00027671,7]
[339060861,1727185855575,-500.0,0.00027671,7]
[339060862,1727185855589,-371.286522,0.00027671,7]
[339060863,1727185855603,-662.69,0.00027671,7]
[339060864,1727185855617,-500.0,0.00027671,7]
[339060865,1727185855631,-500.0,0.00027671,7]
[339060866,1727185855644,-500.0,0.00027671,7]
[339060867,1727185855659,-500.0,0.00027671,7]
[339060868,1727185855673,-500.0,0.00027671,7]
[339060869,1727185855687,-371.286522,0.00027671,7]
[339060870,1727185855701,-1884.85,0.00027671,7]
[339060871,1727185855715,-495.53108,0.00027671,7]
[339060872,1727185855729,-190.876674,0.00027671,7]
[339060873,1727185855743,-500.0,0.00027671,7]
[339060874,1727185855756,-500.0,0.00027671,7]
[339060875,1727185855772,-500.68215758,0.00027671,7]
[339060876,1727185855788,-500.0,0.00027671,7]
[339060877,1727185855804,-500.0,0.00027671,7]
[339060878,1727185855820,-500.0,0.00027671,7]
[339060879,1727185855834,-190.876674,0.00027671,7]
[339060880,1727185855848,-505.36867354,0.00027671,7]
[339060881,1727185855862,-495.53108,0.00027671,7]
[339060882,1727185855877,-500.0,0.00027671,7]
[339060883,1727185855893,-500.0,0.00027671,7]
[339060884,1727185855904,-500.0,0.00027671,7]
[339060885,1727185855914,-500.0,0.00027671,7]
[339060886,1727185855924,-500.0,0.00027671,7]
[339060887,1727185855934,-500.0,0.00027671,7]
[339060888,1727185855943,-500.0,0.00027671,7]
[339060889,1727185855953,-500.0,0.00027671,7]
[339060890,1727185855962,-151.0,0.00027671,7]
[339060891,1727185855971,-251.94865188,0.00027671,2]
[339060892,1727185855981,-151.0,0.00027671,7]
[339060893,1727185855990,-500.0,0.00027671,7]
[339060894,1727185856170,-179.62921173,0.00027671,7]
[339060895,1727185856185,-500.0,0.00027671,7]
[339060896,1727185856195,-500.0,0.00027671,7]
[339060897,1727185856204,-500.0,0.00027671,7]
[339060898,1727185856214,-500.0,0.00027671,7]
[339060899,1727185856223,-500.0,0.00027671,7]
[339060900,1727185856234,-500.0,0.00027671,7]
[339060901,1727185856244,-500.0,0.00027671,7]
[339060902,1727185856252,-501.49148629,0.00027671,7]
[339060903,1727185856262,-500.0,0.00027671,7]
[339060904,1727185856273,-563.81,0.00027671,7]
[339060905,1727185856282,-637.77,0.00027671,7]
[339060906,1727185856292,-500.0,0.00027671,7]
[339060907,1727185856301,-499.86578613,0.00027671,7]
[339060908,1727185856310,-500.0,0.00027671,7]
[339060909,1727185856320,-500.0,0.00027671,7]
[339060910,1727185856329,-298.58273,0.00027671,7]
[339060911,1727185856339,-298.58273,0.00027671,7]
[339060912,1727185856351,-500.0,0.00027671,7]
[339060913,1727185856360,-1161.23088,0.00027671,7]
[339060914,1727185856369,-325.818599,0.00027671,7]
[339060915,1727185856378,-547.50675527,0.00027671,7]
[339060916,1727185856388,-500.0,0.00027671,7]
[339060917,1727185856397,-500.0,0.00027671,7]
[339060918,1727185856406,-500.0,0.00027671,7]
[339060919,1727185856415,-298.58273,0.00027671,7]
[339060920,1727185856425,-1161.23088,0.00027671,7]
[339060921,1727185856435,-298.58273,0.00027671,7]
[339060922,1727185856444,-500.0,0.00027671,7]
[339060923,1727185856453,-500.0,0.00027671,7]
[339060924,1727185856463,-325.818599,0.00027671,7]
[339060925,1727185856473,-838.89,0.00027671,7]
[339060926,1727185856482,-441.77866605,0.00027671,7]
[339060927,1727185856492,-500.0,0.00027671,7]
[339060928,1727185856501,-617.50026236,0.00027671,7]
[339060929,1727185856511,-500.0,0.00027671,7]
[339060930,1727185856522,-500.0,0.00027671,7]
[339060931,1727185856533,-317.74754952,0.00027671,7]
[339060932,1727185856544,-500.0,0.00027671,7]
[339060933,1727185856554,-500.0,0.00027671,7]
[339060934,1727185856565,-928.12,0.00027671,7]
[339060935,1727185856574,-500.0,0.00027671,7]
[339060936,1727185856583,-588.89,0.00027671,7]
[339060937,1727185856592,-500.0,0.00027671,7]
[339060938,1727185856601,-500.0,0.00027671,7]
[339060939,1727185856610,-500.0,0.00027671,7]
[339060940,1727185856620,-1019.76,0.00027671,7]
[339060941,1727185856630,-324.20641,0.00027671,7]
[339060942,1727185856640,-324.20641,0.00027671,7]
[339060943,1727185856650,-500.0,0.00027671,7]
[339060944,1727185856661,-500.0,0.00027671,7]
[339060945,1727185856670,-324.20641,0.00027671,7]
[339060946,1727185856680,-324.20641,0.00027671,7]
[339060947,1727185856689,-500.0,0.00027671,7]
[339060948,1727185856698,-701.67,0.00027671,7]
[339060949,1727185856707,-500.0,0.00027671,7]
[339060950,1727185856716,-500.0,0.00027683,7]
[339060951,1727185856725,-502.4007304,0.00027683,7]
[339060952,1727185856734,-500.0,0.00027683,7]
[339060953,1727185856743,-500.0,0.00027683,7]
[339060954,1727185856752,-500.0,0.00027683,7]
[339060955,1727185856760,-339.10678015,0.00027683,5]
[339060956,1727185856770,-500.0,0.00027683,7]
[339060957,1727185856779,-500.0,0.00027683,7]
[339060958,1727185856788,-151.0,0.0002769,7]
[339060959,1727185856797,-525.278445,0.0002769,7]
[339060960,1727185856807,-525.278445,0.0002769,7]
[339060961,1727185856816,-1017.055903,0.0002769,60]
[339060962,1727185856825,-565.286814,0.0002769,7]
[339060963,1727185856834,-430.058416,0.0002769,7]
[339060964,1727185856843,-565.286814,0.0002769,7]
[339060965,1727185856853,-430.058416,0.0002769,7]
[339060966,1727185856862,-426.315147,0.0002769,7]
[339060967,1727185856871,-1344.762998,0.0002769,7]
[339060968,1727185856880,-426.315147,0.0002769,7]
[339060969,1727185856889,-1344.762998,0.0002769,7]
[339060970,1727185856899,-331.266376,0.0002769,7]
[339060971,1727185856908,-331.266376,0.0002769,7]
[339060972,1727185856917,-4004.81,0.000277,14]
[339060973,1727185856926,-8867.34,0.000277,14]
[339060974,1727185856935,-2378.47,0.000277,14]
[339060975,1727185856944,-266.39,0.000277,7]
[339060976,1727185856953,-150.112233,0.000277,5]
[339060977,1727185856963,-6692.3739639,0.00027718,2]
[339060978,1727185856972,-2000.0,0.0002782,3]
[339060979,1727185856981,-160.0,0.00027882,10]
[339060980,1727185856990,-151.0,0.00027882,7]
[339060981,1727185856999,-151.0,0.00027882,7]
[339060982,1727185857008,-300.133387,0.00027882,7]
[339060983,1727185857017,-272.651362,0.00027882,7]
[339060984,1727185857027,-151.0,0.00027882,7]
[339060985,1727185857036,-154.219427,0.00027882,7]
[339060986,1727185857046,-151.65673,0.00027882,7]
[339060987,1727185857056,-154.219427,0.00027882,7]
[339060988,1727185857067,-151.0,0.00027882,7]
[339060989,1727185857076,-151.0,0.00027882,7]
[339060990,1727185857085,-151.0,0.00027882,7]
[339060991,1727185857095,-151.0,0.00027882,7]
[339060992,1727185857106,-151.0,0.00027882,7]
[339060993,1727185857117,-151.0,0.00027882,7]
[339060994,1727185857127,-322.523896,0.00027882,7]
[339060995,1727185857137,-322.523896,0.00027882,7]
[339060996,1727185857149,-259.557057,0.00027882,2]
[339060997,1727185857159,-699.038868,0.00027882,7]
[339060998,1727185857168,-699.038868,0.00027882,7]
[339060999,1727185857177,-151.0,0.00027882,7]
[339061000,1727185857186,-151.0,0.00027882,7]
[339061001,1727185857195,-151.0,0.00027882,7]
[339061002,1727185857204,-151.0,0.00027882,7]
[339061003,1727185857214,-151.0,0.00027882,7]
[339061004,1727185857225,-825.571215,0.00027882,7]
[339061005,1727185857237,-825.571215,0.00027882,7]
[339061006,1727185857248,-186.722519,0.00027882,2]
[339061007,1727185857259,-240.90618,0.00027882,7]
[339061008,1727185857268,-240.90618,0.00027882,7]
[339061009,1727185857279,-1121.809827,0.00027882,7]
[339061010,1727185857288,-1121.809827,0.00027882,7]
[339061011,1727185857297,-1043.980229,0.00027882,7]
[339061012,1727185857306,-1043.980229,0.00027882,7]
[339061013,1727185857315,-151.0,0.00027882,7]
[339061014,1727185857324,-151.0,0.00027882,7]
[339061015,1727185857334,-371.286522,0.00027882,7]
[339061016,1727185857550,-371.286522,0.00027882,7]
[339061017,1727185857560,-495.53108,0.00027882,7]
[339061018,1727185857570,-190.876674,0.00027882,7]
[339061019,1727185857579,-190.876674,0.00027882,7]
[339061020,1727185857589,-495.53108,0.00027882,7]
[339061021,1727185857598,-1161.23088,0.00027882,7]
[339061022,1727185857607,-325.818599,0.00027882,7]
[339061023,1727185857616,-1161.23088,0.00027882,7]
[339061024,1727185857626,-325.818599,0.00027882,7]
[339061025,1727185857636,-151.0,0.00027892,7]
[339061026,1727185857647,-525.278445,0.00027892,7]
[339061027,1727185857658,-525.278445,0.00027892,7]
[339061028,1727185857667,-430.058416,0.00027892,7]
[339061029,1727185857677,-430.058416,0.00027892,7]
[339061030,1727185857686,-1344.762998,0.00027892,7]
[339061031,1727185857695,-1344.762998,0.00027892,7]
[339061032,1727185857704,-151.0,0.00027893,7]
[339061033,1727185857713,-151.0,0.00027893,7]
[339061034,1727185857723,-151.0,0.00027893,7]
[339061035,1727185857733,-151.0,0.00027893,7]
[339061036,1727185857742,-355.52244,0.00027893,7]
[339061037,1727185857761,-355.52244,0.00027893,7]
[339061038,1727185857773,-151.0,0.00027893,7]
[339061039,1727185857783,-151.0,0.00027893,7]
[339061040,1727185857793,-151.0,0.00027893,7]
[339061041,1727185857802,-151.0,0.00027893,7]
[339061042,1727185857812,-222.459046,0.00027893,7]
[339061043,1727185857822,-222.459046,0.00027893,7]
[339061044,1727185857831,-151.0,0.00027893,7]
[339061045,1727185857841,-151.0,0.00027893,7]
[339061046,1727185857851,-151.0,0.00027893,7]
[339061047,1727185857860,-151.0,0.00027893,7]
[339061048,1727185857870,-393.77,0.000279,14]
[339061049,1727185857881,-151.0,0.00027902,7]
[339061050,1727185857892,-151.0,0.00027902,7]
[339061051,1727185857903,-156.178292,0.00027902,7]
[339061052,1727185857915,-1894.40478,0.00027902,7]
[339061053,1727185857926,-151.0,0.00027902,7]
[339061054,1727185857939,-1894.40478,0.00027902,7]
[339061055,1727185857950,-156.178292,0.00027902,7]
[339061056,1727185857963,-151.0,0.00027902,7]
[339061057,1727185857972,-500.0,0.00027945,7]
[339061058,1727185857982,-504.42675418,0.00027945,7]
[339061059,1727185857992,-500.0,0.00027945,7]
[339061060,1727185858001,-786.36,0.00027945,7]
[339061061,1727185858011,-500.0,0.00027945,7]
[339061062,1727185858021,-500.0,0.00027945,7]
[339061063,1727185858032,-610.08963874,0.00027945,2]
[339061064,1727185858042,-500.0,0.00027945,7]
[339061065,1727185858051,-500.0,0.00027945,7]
[339061066,1727185858060,-822.91,0.00027945,7]
[339061067,1727185858070,-560.15503421,0.00027945,7]
[339061068,1727185858079,-664.95,0.00027945,7]
[339061069,1727185858089,-500.0,0.00027945,7]
[339061070,1727185858098,-500.0,0.00027945,7]
[339061071,1727185858107,-500.0,0.00027945,7]
[339061072,1727185858116,-500.0,0.00027945,5]
[339061073,1727185858126,-720.13,0.00027945,7]
[339061074,1727185858137,-637.03,0.00027945,7]
[339061075,1727185858147,-856.26,0.00027945,7]
[339061076,1727185858158,-500.0,0.00027945,7]
[339061077,1727185858168,-528.4,0.00027945,7]
[339061078,1727185858177,-500.0,0.00027945,7]
[339061079,1727185858186,-500.0,0.00027945,7]
[339061080,1727185858195,-500.0,0.00027945,7]
[339061081,1727185858206,-500.0,0.00027945,7]
[339061082,1727185858218,-500.0,0.00027945,7]
[339061083,1727185858229,-500.0,0.00027945,7]
[339061084,1727185858241,-151.0,0.00027945,7]
[339061085,1727185858252,-500.0,0.00027945,7]
[339061086,1727185858262,-151.0,0.00027945,7]
[339061087,1727185858272,-151.0,0.00027945,7]
[339061088,1727185858282,-151.0,0.00027945,7]
[339061089,1727185858292,-500.0,0.00027945,7]
[339061090,1727185858301,-151.0,0.00027945,7]
[339061091,1727185858311,-197.32544,0.00027945,7]
[339061092,1727185858320,-500.0,0.00027945,7]
[339061093,1727185858330,-197.32544,0.00027945,7]
[339061094,1727185858340,-500.0,0.00027945,7]
[339061095,1727185858351,-500.0,0.00027945,7]
[339061096,1727185858367,-151.0,0.00027945,7]
[339061097,1727185858376,-151.0,0.00027945,7]
[339061098,1727185858387,-500.0,0.00027945,7]
[339061099,1727185858396,-550.65,0.00027945,7]
[339061100,1727185858405,-500.0,0.00027945,7]
[339061101,1727185858417,-500.0,0.00027945,7]
[339061102,1727185858427,-500.0,0.00027945,7]
[339061103,1727185858437,-500.0,0.00027945,7]
[339061104,1727185858447,-500.0,0.00027945,7]
[339061105,1727185858457,-500.0,0.00027945,2]
[339061106,1727185858468,-500.0,0.00027945,7]
[339061107,1727185858479,-500.0,0.00027945,7]
[339061108,1727185858488,-500.0,0.00027945,7]
[339061109,1727185858498,-172.16624904,0.00027945,7]
[339061110,1727185858508,-500.0,0.00027945,7]
[339061111,1727185858517,-500.0,0.00027945,7]
[339061112,1727185858529,-500.0,0.00027945,7]
[339061113,1727185858545,-574.18,0.00027945,7]
[339061114,1727185858555,-500.0,0.00027945,7]
[339061115,1727185858565,-500.0,0.00027945,7]
[339061116,1727185858575,-286.37864143,0.00027945,7]
[339061117,1727185858585,-151.0,0.00027945,7]
[339061118,1727185858594,-514.12715854,0.00027945,7]
[339061119,1727185858604,-536.26,0.00027945,7]
[339061120,1727185858614,-401.59779302,0.00027945,7]
[339061121,1727185858623,-151.0,0.00027945,7]
[339061122,1727185858633,-500.0,0.00027945,7]
[339061123,1727185858643,-500.0,0.00027945,7]
[339061124,1727185858653,-151.0,0.00027945,7]
[339061125,1727185858663,-779.29,0.00027945,7]
[339061126,1727185858673,-500.0,0.00027945,7]
[339061127,1727185858683,-355.52244,0.00027945,7]
[339061128,1727185858692,-500.0,0.00027945,7]
[339061129,1727185858702,-355.52244,0.00027945,7]
[339061130,1727185858712,-500.0,0.00027945,7]
[339061131,1727185858722,-500.0,0.00027945,7]
[339061132,1727185858731,-981.24,0.00027945,7]
[339061133,1727185858741,-500.0,0.00027945,7]
[339061134,1727185858751,-500.0,0.00027945,7]
[339061135,1727185858761,-500.0,0.00027945,7]
[339061136,1727185858771,-505.9019975,0.00027945,7]
[339061137,1727185858784,-668.98,0.00027945,7]
[339061138,1727185858794,-500.0,0.00027945,7]
[339061139,1727185858804,-667.57,0.00027945,7]
[339061140,1727185858818,-1224.72,0.00027945,7]
[339061141,1727185858829,-500.0,0.00027945,7]
[339061142,1727185858839,-500.0,0.00027945,7]
[339061143,1727185858849,-151.0,0.00027945,7]
[339061144,1727185858860,-151.0,0.00027945,7]
[339061145,1727185858869,-846.35,0.00027945,7]
[339061146,1727185858879,-523.09,0.00027945,7]
[339061147,1727185858889,-151.0,0.00027945,7]
[339061148,1727185858899,-500.0,0.00027945,7]
[339061149,1727185858909,-832.28,0.00027945,2]
[339061150,1727185858918,-539.78,0.00027945,7]
[339061151,1727185858928,-500.0,0.00027945,7]
[339061152,1727185858938,-500.0,0.00027945,7]
[339061153,1727185858948,-631.71061568,0.00027945,7]
[339061154,1727185858957,-500.0,0.00027945,7]
[339061155,1727185858967,-500.0,0.00027945,7]
[339061156,1727185858977,-834.7,0.00027945,7]
[339061157,1727185858987,-500.0,0.00027945,7]
[339061158,1727185859151,-151.0,0.00027945,7]
[339061159,1727185859167,-503.00562093,0.00027945,7]
[339061160,1727185859177,-500.0,0.00027945,7]
[339061161,1727185859187,-882.2,0.00027945,7]
[339061162,1727185859197,-222.459046,0.00027945,7]
[339061163,1727185859207,-500.0,0.00027945,7]
[339061164,1727185859217,-222.459046,0.00027945,7]
[339061165,1727185859227,-226.07578699,0.00027945,7]
[339061166,1727185859237,-151.0,0.00027945,7]
[339061167,1727185859247,-341.0138356,0.00027945,7]
[339061168,1727185859256,-500.0,0.00027945,7]
[339061169,1727185859266,-500.0,0.00027945,7]
[339061170,1727185859276,-700.78,0.00027945,7]
[339061171,1727185859285,-151.0,0.00027945,7]
[339061172,1727185859295,-209.2049637,0.00027945,7]
[339061173,1727185859304,-923.88,0.00027945,7]
[339061174,1727185859314,-151.0,0.00027945,7]
[339061175,1727185859324,-500.0,0.00027945,7]
[339061176,1727185859334,-500.0,0.00027945,7]
[339061177,1727185859346,-500.0,0.00027945,7]
[339061178,1727185859355,-500.0,0.00027945,7]
[339061179,1727185859365,-500.0,0.00027945,7]
[339061180,1727185859375,-585.81716473,0.00027945,7]
[339061181,1727185859386,-500.0,0.00027945,7]
[339061182,1727185859396,-699.55,0.00027945,7]
[339061183,1727185859406,-515.63644894,0.00027945,7]
[339061184,1727185859417,-151.0,0.00027945,7]
[339061185,1727185859427,-500.0,0.00027945,7]
[339061186,1727185859436,-500.0,0.00027945,7]
[339061187,1727185859447,-500.0,0.00027945,2]
[339061188,1727185859456,-500.0,0.00027945,7]